bitfinex-derivatives/quotes_BTCF0:USTF0_20251002
["timestamp","ask_amount","ask_price","bid_price","bid_amount"]
[1759364564956,0.17661199,119090.0,119080.0,0.03394094]
[1759364565355,0.57661199,119090.0,119080.0,0.03394094]
[1759364565848,0.57661199,119090.0,119080.0,0.02054094]
[1759364566958,0.58061199,119090.0,119080.0,0.03154094]
[1759364567251,0.58061199,119090.0,119080.0,0.02054094]
[1759364567252,0.57661199,119090.0,119080.0,0.02054094]
[1759364567552,0.59661199,119090.0,119080.0,0.03254094]
[1759364568058,0.57661199,119090.0,119080.0,0.02054094]
[1759364568961,0.94141199,119090.0,119080.0,0.0116]
[1759364570058,0.93741199,119090.0,119080.0,0.0006]
[1759364570259,0.94141199,119090.0,119080.0,0.0086]
[1759364574463,0.94141199,119090.0,119080.0,0.02233]
[1759364574761,1.74073199,119090.0,119080.0,0.02233]
[1759364575261,1.74073199,119090.0,119080.0,0.0086]
[1759364578561,2.11578997,119090.0,119080.0,0.0086]
[1759364580164,2.11566997,119090.0,119080.0,0.0086]
[1759364580460,2.21194025,119090.0,119080.0,0.0086]
[1759364582266,2.34394649,119090.0,119080.0,0.0086]
[1759364582974,2.34394649,119090.0,119060.0,0.44183418]
[1759364582975,0.1014724,119070.0,119060.0,0.44183418]
[1759364583173,1.19214287,119070.0,119060.0,0.08103418]
[1759364583377,1.19214287,119070.0,119060.0,0.0365]
[1759364584268,1.20914287,119070.0,119060.0,0.0415]
[1759364584576,1.20914287,119070.0,119060.0,0.005]
[1759364585274,0.41006287,119070.0,119060.0,0.005]
[1759364585474,1.19206287,119070.0,119060.0,0.03683]
[1759364585674,1.19606287,119070.0,119060.0,0.02473]
[1759364585872,1.19606287,119070.0,119060.0,0.011]
[1759364585873,1.89773012,119070.0,119060.0,0.011]
[1759364586072,2.25853012,119070.0,119060.0,0.011]
[1759364587772,0.1095494,119060.0,119050.0,0.04453418]
[1759364587970,1.0736839,119060.0,119050.0,0.04453418]
[1759364588163,1.8726439,119060.0,119050.0,0.04453418]
[1759364588367,1.8645739,119060.0,119050.0,0.08136418]
[1759364589175,1.8695739,119060.0,119050.0,0.09536418]
[1759364589370,1.8695739,119060.0,119050.0,0.09936418]
[1759364589371,1.0706139,119060.0,119050.0,0.09936418]
[1759364589570,1.22710665,119060.0,119050.0,0.05483]
[1759364590576,1.58790665,119060.0,119050.0,0.05483]
[1759364591573,1.8895739,119060.0,119050.0,0.05483]
[1759364591874,0.4872794,119060.0,119050.0,0.05483]
[1759364592070,0.9253994,119060.0,119050.0,0.05483]
[1759364592276,1.8895339,119060.0,119050.0,0.03173]
[1759364592676,1.2861994,119060.0,119050.0,0.03173]
[1759364592978,1.8895339,119060.0,119050.0,0.03173]
[1759364593180,1.2861994,119060.0,119050.0,0.03173]
[1759364593371,1.8895339,119060.0,119050.0,0.03173]
[1759364593873,1.2861994,119060.0,119050.0,0.03173]
[1759364594079,1.5287339,119060.0,119050.0,0.03173]
[1759364594679,0.9253594,119060.0,119050.0,0.05483]
[1759364594974,1.5286939,119060.0,119050.0,0.05483]
[1759364595180,1.8894939,119060.0,119050.0,0.05483]
[1759364595880,1.8894939,119060.0,119050.0,0.03173]
[1759364596478,1.8894939,119060.0,119050.0,0.018]
[1759364597077,1.8975639,119060.0,119050.0,0.018]
[1759364598874,2.59923115,119060.0,119050.0,0.018]
[1759364599078,0.1014935,119040.0,119030.0,0.01561185]
[1759364599376,0.1015005,119030.0,119020.0,0.04462347]
[1759364599580,0.75388667,119030.0,119020.0,0.04462347]
[1759364599880,1.19180667,119030.0,119020.0,0.08143347]
[1759364600078,1.25796874,119030.0,119020.0,0.08143347]
[1759364600274,1.61876874,119030.0,119020.0,0.08143347]
[1759364601574,1.25796874,119030.0,119020.0,0.08143347]
[1759364602180,1.62476874,119030.0,119020.0,0.05831347]
[1759364602375,1.64976874,119030.0,119020.0,0.04462347]
[1759364603181,1.28892874,119030.0,119020.0,0.04462347]
[1759364603483,1.64972874,119030.0,119020.0,0.04462347]
[1759364603673,1.28892874,119030.0,119020.0,0.04462347]
[1759364604479,0.98726149,119030.0,119020.0,0.07936347]
[1759364604678,1.64972874,119030.0,119020.0,0.07936347]
[1759364605082,1.64972874,119030.0,119020.0,0.03482929]
[1759364605786,0.49024874,119030.0,119020.0,0.03482929]
[1759364605988,1.28884874,119030.0,119020.0,0.33649654]
[1759364606287,1.28884874,119030.0,119020.0,0.69729654]
[1759364608478,0.18858149,119030.0,119020.0,1.08294139]
[1759364608680,0.96957149,119030.0,119020.0,0.47960689]
[1759364608879,0.96957149,119030.0,119020.0,1.48294139]
[1759364609086,0.96957149,119030.0,119020.0,1.52747557]
[1759364609681,0.09716207,119030.0,119020.0,1.52747557]
[1759364609884,0.97965257,119030.0,119020.0,1.61930837]
[1759364610785,1.29884982,119030.0,119020.0,0.48746209]
[1759364610985,1.29884982,119030.0,119020.0,0.78912934]
[1759364611685,1.29884982,119030.0,119020.0,1.27310694]
[1759364611879,0.99710257,119030.0,119020.0,1.01597387]
[1759364612075,0.99710257,119030.0,119020.0,1.31764112]
[1759364612275,0.99710257,119030.0,119020.0,0.93199627]
[1759364612480,0.99710257,119030.0,119020.0,1.23366352]
[1759364612785,0.99710257,119030.0,119020.0,1.31764112]
[1759364612988,0.99710257,119030.0,119020.0,1.27310694]
[1759364613389,0.97949257,119030.0,119020.0,1.57477419]
[1759364613590,0.031,119030.0,119020.0,1.61930837]
[1759364613786,0.82936,119030.0,119020.0,1.61930837]
[1759364614178,0.81928031,119030.0,119020.0,1.57477419]
[1759364614578,0.02092031,119030.0,119020.0,1.57477419]
[1759364614990,0.10489081,119030.0,119020.0,1.57477419]
[1759364615183,0.10489081,119030.0,119020.0,1.61937658]
[1759364615383,0.10489081,119030.0,119020.0,1.23373173]
[1759364615590,0.10489081,119030.0,119020.0,0.53206448]
[1759364615591,0.42408806,119030.0,119020.0,0.53206448]
[1759364615790,0.42408806,119030.0,119020.0,0.83373173]
[1759364617194,0.51148004,119030.0,119020.0,0.53206448]
[1759364617396,0.79222698,119030.0,119020.0,0.07943168]
[1759364617587,1.19822698,119030.0,119020.0,0.04469168]
[1759364617786,1.55902698,119030.0,119020.0,0.04469168]
[1759364617993,1.53402698,119030.0,119020.0,8.929e-05]
[1759364618191,1.55302698,119030.0,119020.0,8.929e-05]
[1759364618895,1.55702698,119030.0,119020.0,8.929e-05]
[1759364619094,0.1095776,119020.0,119010.0,0.04460239]
[1759364619286,1.8718721,119020.0,119010.0,0.04460239]
[1759364619488,2.17353935,119020.0,119010.0,0.04460239]
[1759364619689,1.8718721,119020.0,119010.0,0.04460239]
[1759364620093,1.87196795,119020.0,119010.0,0.04460239]
[1759364620493,2.30396795,119020.0,119010.0,0.04460239]
[1759364620894,1.50580795,119020.0,119010.0,0.04460239]
[1759364621196,0.1015146,119010.0,119000.0,0.04460239]
[1759364621395,0.75032795,119010.0,119000.0,0.04460239]
[1759364622508,0.75032795,119010.0,119000.0,0.05801239]
[1759364622509,1.54844795,119010.0,119000.0,0.05801239]
[1759364622716,1.18760795,119010.0,119000.0,0.05801239]
[1759364622907,1.54840795,119010.0,119000.0,0.07934239]
[1759364623619,1.21460795,119010.0,119000.0,0.07934239]
[1759364623917,1.58458316,119010.0,119000.0,0.05801239]
[1759364624115,1.56258316,119010.0,119000.0,0.05801239]
[1759364624317,0.76446316,119010.0,119000.0,0.05801239]
[1759364624506,0.76446316,119010.0,119000.0,0.07934239]
[1759364624711,1.20170316,119010.0,119000.0,0.44019779]
[1759364624912,0.10199591,119010.0,119000.0,0.74186504]
[1759364625112,0.88250591,119010.0,119000.0,1.53919838]
[1759364625313,0.88250591,119010.0,119000.0,1.49454059]
[1759364625510,0.08446591,119010.0,119000.0,1.57853229]
[1759364625708,0.01413521,119010.0,119000.0,1.57853229]
[1759364625909,0.81217521,119010.0,119000.0,1.57853229]
[1759364626613,0.89615961,119010.0,119000.0,1.57853229]
[1759364627218,0.81217521,119010.0,119000.0,1.27686504]
[1759364627718,0.005,119010.0,119000.0,1.57853229]
[1759364628019,0.70025585,119020.0,119010.0,0.1183944]
[1759364628221,0.70025585,119020.0,119010.0,0.78086165]
[1759364628522,0.70025585,119020.0,119010.0,0.87358271]
[1759364628914,0.71778585,119020.0,119010.0,0.87358271]
[1759364629315,0.72578585,119020.0,119010.0,0.87358271]
[1759364629622,0.71740206,119020.0,119010.0,0.87358271]
[1759364630011,0.71740206,119020.0,119010.0,0.45468076]
[1759364630012,0.8278287,119020.0,119010.0,0.45468076]
[1759364630314,1.12949595,119020.0,119010.0,0.45468076]
[1759364630518,1.4311632,119020.0,119010.0,0.45468076]
[1759364630719,1.10249595,119020.0,119010.0,0.45468076]
[1759364630914,1.4261632,119020.0,119010.0,0.45468076]
[1759364631120,1.12449595,119020.0,119010.0,0.45468076]
[1759364631325,1.11084384,119020.0,119010.0,0.45468076]
[1759364631818,1.08884384,119020.0,119010.0,0.45468076]
[1759364632026,1.39651109,119020.0,119010.0,0.45568076]
[1759364632212,1.09484384,119020.0,119010.0,0.45568076]
[1759364632417,1.08884384,119020.0,119010.0,0.45468076]
[1759364632718,1.09484384,119020.0,119010.0,0.45568076]
[1759364632924,1.80651109,119020.0,119010.0,0.05947076]
[1759364633318,1.80651109,119020.0,119010.0,0.09388076]
[1759364633524,0.02514621,119020.0,119010.0,1.33032065]
[1759364633724,0.80686621,119020.0,119010.0,1.33032065]
[1759364633914,0.81772,119020.0,119010.0,1.33032065]
[1759364634512,0.81372,119020.0,119010.0,1.33032065]
[1759364634721,0.81972,119020.0,119010.0,1.33032065]
[1759364635217,0.80372,119020.0,119010.0,1.33032065]
[1759364635417,0.006,119020.0,119010.0,1.33032065]
[1759364635623,0.81271989,119020.0,119010.0,1.33032065]
[1759364635828,0.80368,119020.0,119010.0,1.33032065]
[1759364636122,0.006,119020.0,119010.0,1.33032065]
[1759364636328,0.15048092,119030.0,119020.0,0.118387]
[1759364636624,0.94812092,119030.0,119020.0,0.56702974]
[1759364637521,0.96812092,119030.0,119020.0,0.56642974]
[1759364637722,0.94812092,119030.0,119020.0,0.56642974]
[1759364637923,0.95412092,119030.0,119020.0,0.56642974]
[1759364638630,0.15648092,119030.0,119020.0,0.56642974]
[1759364638833,0.95408092,119030.0,119020.0,0.56642974]
[1759364639532,0.96327657,119030.0,119020.0,0.56642974]
[1759364639730,0.006,119030.0,119020.0,1.49751432]
[1759364641331,0.006,119030.0,119020.0,1.43804356]
[1759364641535,0.006,119030.0,119020.0,1.49758075]
[1759364642331,0.006,119030.0,119020.0,1.40061916]
[1759364642533,0.006,119030.0,119020.0,2.19797916]
[1759364643122,0.0839542,119060.0,119050.0,0.01264]
[1759364643324,0.1071158,119070.0,119060.0,0.1183587]
[1759364643528,0.9043958,119070.0,119060.0,0.1183587]
[1759364643728,0.1071158,119070.0,119060.0,0.1183587]
[1759364643929,0.12393299,119080.0,119070.0,0.1183517]
[1759364644125,0.94112296,119080.0,119070.0,0.1183517]
[1759364645139,0.9664796,119080.0,119070.0,0.03441]
[1759364645328,0.93044963,119080.0,119070.0,0.1183518]
[1759364646129,0.93044963,119080.0,119070.0,0.52379367]
[1759364646347,0.96044963,119080.0,119070.0,0.44385187]
[1759364646531,0.93044963,119080.0,119070.0,0.41808187]
[1759364646732,0.93844963,119080.0,119070.0,0.37744]
[1759364647236,0.93844963,119080.0,119070.0,0.39921]
[1759364647537,0.93844963,119080.0,119070.0,0.03841]
[1759364647744,1.00510095,119080.0,119070.0,0.08305187]
[1759364648038,1.00510095,119080.0,119070.0,0.03841]
[1759364648432,0.12400275,119080.0,119070.0,0.4831518]
[1759364648637,1.00489755,119080.0,119070.0,0.4831518]
[1759364649439,0.20793755,119080.0,119070.0,0.4831518]
[1759364649633,0.92088275,119080.0,119070.0,0.85780403]
[1759364649831,0.92088275,119080.0,119070.0,0.94704069]
[1759364650028,0.92088275,119080.0,119070.0,0.57238846]
[1759364650532,1.00481755,119080.0,119070.0,0.57238846]
[1759364651740,0.20793755,119080.0,119070.0,0.57238846]
[1759364651941,1.00469755,119080.0,119070.0,0.57238846]
[1759364653346,0.10083275,119080.0,119070.0,0.57238846]
[1759364653644,0.89751275,119080.0,119070.0,0.57238846]
[1759364653943,0.89751275,119080.0,119070.0,0.99168256]
[1759364654138,0.88064796,119080.0,119070.0,0.99168256]
[1759364654346,0.88064796,119080.0,119070.0,0.94704069]
[1759364654546,0.98775276,119080.0,119070.0,0.57238846]
[1759364656439,0.98775276,119080.0,119070.0,0.48844666]
[1759364657643,0.98775276,119080.0,119070.0,0.39921]
[1759364659143,0.98775276,119080.0,119070.0,0.37744]
[1759364659445,0.98775276,119080.0,119070.0,0.39889]
[1759364660044,2.12920499,119080.0,119070.0,0.004]
[1759364660744,0.0839489,119060.0,119050.0,0.04464187]
[1759364661042,0.02073,119060.0,119050.0,0.89953]
[1759364661250,0.02073,119070.0,119060.0,0.1194241]
[1759364661540,0.18867556,119080.0,119070.0,0.1194218]
[1759364661847,0.97687556,119080.0,119070.0,0.01373]
[1759364662036,0.97687556,119080.0,119070.0,0.03548]
[1759364662844,1.00887556,119080.0,119070.0,0.03848]
[1759364663239,1.33767556,119080.0,119070.0,0.01373]
[1759364663433,0.1046718,119070.0,119060.0,0.04445269]
[1759364663640,0.1046718,119070.0,119060.0,0.01373]
[1759364663842,0.1046718,119070.0,119060.0,0.05818269]
[1759364663843,0.4654718,119070.0,119060.0,0.05818269]
[1759364664244,0.1046718,119070.0,119060.0,0.07993269]
[1759364664447,0.1046718,119070.0,119060.0,0.16388149]
[1759364664646,0.9287518,119070.0,119060.0,0.16688149]
[1759364665244,0.9287518,119070.0,119060.0,0.08293269]
[1759364665749,0.9077518,119070.0,119060.0,0.08393269]
[1759364666247,1.3077518,119070.0,119060.0,0.04845269]
[1759364666845,1.6685518,119070.0,119060.0,0.04845269]
[1759364669052,0.8724718,119070.0,119060.0,0.08393269]
[1759364669253,0.1116718,119070.0,119060.0,0.16788159]
[1759364669453,0.9075918,119070.0,119060.0,0.16788159]
[1759364669941,0.9075918,119070.0,119060.0,0.08393269]
[1759364670554,0.1116718,119070.0,119060.0,0.08393269]
[1759364670748,0.9075918,119070.0,119060.0,0.08393269]
[1759364671949,0.1116718,119070.0,119060.0,0.03948]
[1759364672143,0.1116718,119070.0,119060.0,0.1234288]
[1759364672350,0.8028,119070.0,119060.0,0.61925281]
[1759364672745,0.82353,119070.0,119060.0,0.61925281]
[1759364673152,0.82353,119070.0,119060.0,0.57480012]
[1759364673153,0.9074717,119070.0,119060.0,0.57480012]
[1759364673343,0.9074717,119070.0,119060.0,0.61925281]
[1759364673549,0.9074717,119070.0,119060.0,0.004]
[1759364674352,1.68212393,119070.0,119060.0,0.004]
[1759364675849,0.5116717,119070.0,119060.0,0.01773]
[1759364676050,1.3073117,119070.0,119060.0,0.01773]
[1759364676551,1.3073117,119070.0,119060.0,0.004]
[1759364679053,1.3073117,119070.0,119060.0,0.01773]
[1759364679456,0.9102717,119070.0,119060.0,0.04048]
[1759364679855,0.9392717,119070.0,119060.0,0.04248]
[1759364680042,0.9392717,119070.0,119060.0,0.1264288]
[1759364680043,0.1436717,119070.0,119060.0,0.1264288]
[1759364680250,0.85525,119070.0,119060.0,1.30633372]
[1759364680446,0.9291917,119070.0,119060.0,0.52468149]
[1759364680659,0.9001917,119070.0,119060.0,0.52468149]
[1759364680853,0.9001917,119070.0,119060.0,0.44073269]
[1759364681448,0.02573,119070.0,119060.0,0.52668149]
[1759364681648,0.82117,119070.0,119060.0,0.52668149]
[1759364682158,0.9051117,119070.0,119060.0,0.52668149]
[1759364684267,0.1096717,119070.0,119060.0,0.52668149]
[1759364684467,0.9050717,119070.0,119060.0,0.52668149]
[1759364684766,0.9050717,119070.0,119060.0,0.08193269]
[1759364684969,0.9050717,119070.0,119060.0,0.06018269]
[1759364685567,0.9050717,119070.0,119060.0,0.08193269]
[1759364686270,0.9050717,119070.0,119060.0,0.04645269]
[1759364686778,0.9050717,119070.0,119060.0,0.08193269]
[1759364687466,0.1096717,119070.0,119060.0,0.52668149]
[1759364687667,0.9048317,119070.0,119060.0,0.52668149]
[1759364688074,0.9048317,119070.0,119060.0,0.08193269]
[1759364688672,0.9048317,119070.0,119060.0,0.44273269]
[1759364689074,0.9048317,119070.0,119060.0,0.52668149]
[1759364689680,0.9048317,119070.0,119060.0,0.44273269]
[1759364689882,0.9048317,119070.0,119060.0,0.52668149]
[1759364692283,0.9048317,119070.0,119060.0,0.4822288]
[1759364693082,0.005,119070.0,119060.0,1.25688103]
[1759364693283,0.15994886,119080.0,119070.0,0.1202317]
[1759364693284,0.18067886,119080.0,119070.0,0.1202317]
[1759364693479,0.07600796,119080.0,119070.0,0.90034247]
[1759364693784,0.79492,119080.0,119070.0,0.90034247]
[1759364694292,0.09515063,119100.0,119090.0,0.03629]
[1759364694589,0.93051343,119100.0,119090.0,0.03629]
[1759364694789,0.93970781,119100.0,119090.0,0.03629]
[1759364694991,0.14482781,119100.0,119090.0,0.4810176]
[1759364695182,0.93970781,119100.0,119090.0,0.39709]
[1759364695383,1.30050781,119100.0,119090.0,0.01321]
[1759364695585,0.1046576,119090.0,119080.0,0.39709]
[1759364696285,0.17072602,119090.0,119080.0,0.39709]
[1759364697189,0.17072602,119090.0,119080.0,0.37401]
[1759364697389,0.17772602,119090.0,119080.0,0.37801]
[1759364698091,0.17072602,119090.0,119080.0,0.37401]
[1759364698292,0.17072602,119090.0,119080.0,0.41863793]
[1759364698493,0.17072602,119090.0,119080.0,0.04462793]
[1759364698894,0.53152602,119090.0,119080.0,0.04462793]
[1759364700188,0.53152602,119090.0,119080.0,0.05783793]
[1759364701393,0.53152602,119090.0,119080.0,0.05843793]
[1759364702093,0.53152602,119090.0,119080.0,0.08151793]
[1759364702993,0.106762,119070.0,119060.0,0.37453]
[1759364703193,0.1067691,119060.0,119050.0,0.39709]
[1759364703388,0.1067691,119060.0,119050.0,0.11024311]
[1759364703389,0.09111609,119060.0,119050.0,0.11024311]
[1759364704091,0.09111609,119060.0,119050.0,0.03629]
[1759364704490,0.09611609,119060.0,119050.0,0.04429]
[1759364704891,0.09111609,119060.0,119050.0,0.02308]
[1759364705587,0.1067759,119050.0,119040.0,0.39709]
[1759364705790,1.38631721,119050.0,119040.0,0.43521624]
[1759364705991,0.9148659,119050.0,119040.0,0.43521624]
[1759364706193,1.6756659,119050.0,119040.0,0.07441624]
[1759364706392,2.14711721,119050.0,119040.0,0.07441624]
[1759364706596,0.1199929,119040.0,119030.0,0.07450714]
[1759364706997,1.35224421,119040.0,119030.0,0.07450714]
[1759364707791,1.35224421,119040.0,119030.0,0.08650714]
[1759364707792,1.35724421,119040.0,119030.0,0.08650714]
[1759364708000,0.8857929,119040.0,119030.0,0.08650714]
[1759364708298,2.15152421,119040.0,119030.0,0.08650714]
[1759364708499,2.14652421,119040.0,119030.0,0.07450714]
[1759364709794,2.16338297,119040.0,119030.0,0.07450714]
[1759364709999,2.16338297,119040.0,119030.0,0.05964845]
[1759364710493,2.22939183,119040.0,119030.0,0.05964845]
[1759364711096,2.22939183,119040.0,119030.0,9.09e-05]
[1759364713500,2.21574145,119040.0,119030.0,0.05964845]
[1759364713895,1.42146145,119040.0,119030.0,0.05964845]
[1759364714095,2.21566145,119040.0,119030.0,0.05964845]
[1759364714396,2.20558122,119040.0,119030.0,0.07450714]
[1759364714797,0.0888499,119030.0,119020.0,0.05610551]
[1759364715002,0.94392121,119030.0,119020.0,0.05610551]
[1759364715300,0.94392121,119030.0,119020.0,0.11563577]
[1759364715501,0.94392121,119030.0,119020.0,0.05953026]
[1759364715997,1.27275183,119030.0,119020.0,0.07153026]
[1759364716893,1.74420314,119030.0,119020.0,0.05953026]
[1759364717092,1.74920314,119030.0,119020.0,0.06453026]
[1759364717292,0.11787183,119030.0,119020.0,0.10082026]
[1759364717493,0.03390193,119030.0,119020.0,0.99671831]
[1759364717699,0.01108193,119030.0,119020.0,1.35751831]
[1759364718089,0.80520193,119030.0,119020.0,1.45464848]
[1759364718301,0.01108193,119030.0,119020.0,1.45464848]
[1759364721901,0.11722183,119030.0,119020.0,1.45464838]
[1759364722903,0.01108193,119030.0,119020.0,1.45464838]
[1759364723292,0.01108193,119030.0,119020.0,1.5141576]
[1759364723800,0.09505183,119030.0,119020.0,1.5141576]
[1759364724496,0.01108193,119030.0,119020.0,1.5141576]
[1759364724698,0.09505183,119030.0,119020.0,1.5141576]
[1759364726312,0.01108193,119030.0,119020.0,1.5141576]
[1759364727803,0.09505183,119030.0,119020.0,1.5141576]
[1759364728603,0.09505183,119030.0,119020.0,1.04270629]
[1759364728799,0.09505183,119030.0,119020.0,1.5141576]
[1759364730399,0.11752183,119030.0,119020.0,0.64270629]
[1759364730607,0.09379161,119030.0,119020.0,0.58319707]
[1759364731008,0.09379161,119030.0,119020.0,0.64275023]
[1759364731405,0.10644,119030.0,119020.0,0.55877333]
[1759364731605,0.10644,119030.0,119020.0,0.58319717]
[1759364733317,0.10644,119030.0,119020.0,0.64275033]
[1759364733613,0.10644,119030.0,119020.0,0.64275023]
[1759364733809,0.10644,119030.0,119020.0,0.54562006]
[1759364736319,0.10644,119030.0,119020.0,0.84749621]
[1759364736519,0.40831615,119030.0,119020.0,0.84749621]
[1759364738528,0.81579,119030.0,119020.0,0.84749621]
[1759364738716,1.20163605,119030.0,119020.0,0.54562006]
[1759364738914,1.20163605,119030.0,119020.0,0.84749621]
[1759364739420,0.8997599,119030.0,119020.0,0.84749621]
[1759364740623,0.8997599,119030.0,119020.0,0.78794305]
[1759364740810,1.20163605,119030.0,119020.0,0.78794305]
[1759364741015,0.8997599,119030.0,119020.0,0.78794305]
[1759364742322,0.1064399,119030.0,119020.0,0.78794305]
[1759364742522,0.8996399,119030.0,119020.0,0.78794305]
[1759364743015,0.81567,119030.0,119020.0,1.0898192]
[1759364743218,0.45184811,119040.0,119030.0,0.11935]
[1759364743219,0.06600886,119040.0,119030.0,0.11935]
[1759364743409,0.0839559,119050.0,119040.0,0.1193429]
[1759364743616,0.94273032,119050.0,119040.0,0.39618]
[1759364743917,1.67514647,119050.0,119040.0,0.17595007]
[1759364744118,1.67514647,119050.0,119040.0,0.06737981]
[1759364744423,2.03594647,119050.0,119040.0,0.04468981]
[1759364745019,2.33782262,119050.0,119040.0,0.00297885]
[1759364745320,0.1113128,119040.0,119030.0,0.025]
[1759364745522,1.0758651,119040.0,119030.0,0.025]
[1759364745717,0.4721128,119040.0,119030.0,0.04769]
[1759364745916,0.1064328,119040.0,119030.0,0.69805615]
[1759364746226,0.40830895,119040.0,119030.0,0.78202615]
[1759364746418,1.22346926,119040.0,119030.0,0.38349]
[1759364746618,0.8993928,119040.0,119030.0,0.39618]
[1759364746812,1.20626895,119040.0,119030.0,0.41018]
[1759364747619,0.1114328,119040.0,119030.0,0.69805615]
[1759364747815,1.21618895,119040.0,119030.0,0.70305615]
[1759364748623,1.21318895,119040.0,119030.0,0.70205615]
[1759364748821,1.21318895,119040.0,119030.0,0.71905615]
[1759364749023,1.21818895,119040.0,119030.0,0.71905615]
[1759364749421,1.90270229,119040.0,119030.0,0.021]
[1759364749624,0.1062099,119030.0,119020.0,0.45679552]
[1759364749824,0.40808605,119030.0,119020.0,0.45679552]
[1759364750024,0.40808605,119030.0,119020.0,0.69907615]
[1759364752129,0.8989299,119030.0,119020.0,0.78305315]
[1759364752433,0.89384901,119030.0,119020.0,0.85964867]
[1759364753025,0.89384901,119030.0,119020.0,0.77567167]
[1759364753231,0.8751978,119030.0,119020.0,0.75867167]
[1759364753431,0.0824778,119030.0,119020.0,0.75867167]
[1759364753731,0.8751978,119030.0,119020.0,0.75867167]
[1759364754334,0.8750778,119030.0,119020.0,1.14452482]
[1759364754537,0.8750778,119030.0,119020.0,0.78305315]
[1759364754732,0.8750778,119030.0,119020.0,1.0849293]
[1759364755733,0.8830778,119030.0,119020.0,1.0889293]
[1759364755930,0.8880778,119030.0,119020.0,0.80805315]
[1759364756431,0.8800778,119030.0,119020.0,0.78305315]
[1759364756631,1.17695395,119030.0,119020.0,0.3972]
[1759364756831,0.8881578,119030.0,119020.0,0.3972]
[1759364757026,1.17695395,119030.0,119020.0,0.69907615]
[1759364757426,0.8750778,119030.0,119020.0,0.69907615]
[1759364758134,0.8750778,119030.0,119020.0,0.78305305]
[1759364758433,0.8749978,119030.0,119020.0,0.78305305]
[1759364758634,0.8749978,119030.0,119020.0,0.78365305]
[1759364758832,0.015,119030.0,119020.0,1.15012472]
[1759364759133,0.8763699,119030.0,119020.0,1.14512472]
[1759364759330,0.8813699,119030.0,119020.0,1.16212472]
[1759364759729,0.8883699,119030.0,119020.0,1.06514782]
[1759364759930,0.9156099,119030.0,119020.0,1.08214782]
[1759364760640,0.9156099,119030.0,119020.0,0.47839552]
[1759364760831,0.9156099,119030.0,119020.0,1.08214782]
[1759364763139,0.9156099,119030.0,119020.0,0.78027167]
[1759364763844,0.9156099,119030.0,119020.0,0.72067615]
[1759364764048,0.9206199,119030.0,119020.0,0.70746615]
[1759364764243,0.9156099,119030.0,119020.0,0.40559]
[1759364764447,0.9156099,119030.0,119020.0,0.41953]
[1759364768751,1.309454,119030.0,119020.0,0.10438552]
[1759364769552,1.29937289,119030.0,119020.0,0.10438552]
[1759364769752,1.28237289,119030.0,119020.0,0.08338552]
[1759364771057,1.28937289,119030.0,119020.0,0.02779]
[1759364772753,1.31258522,119030.0,119020.0,0.02779]
[1759364774453,1.31258522,119030.0,119020.0,0.0046]
[1759364775255,1.67338522,119030.0,119020.0,0.0046]
[1759364776558,1.67338522,119030.0,119020.0,0.02779]
[1759364776761,1.67338522,119030.0,119020.0,0.0046]
[1759364777058,1.67338522,119030.0,119020.0,0.06419552]
[1759364778360,1.67306522,119030.0,119020.0,0.08738552]
[1759364778549,1.67306522,119030.0,119020.0,0.06419552]
[1759364779556,1.67306522,119030.0,119020.0,0.0046]
[1759364779760,1.2705799,119030.0,119020.0,0.0271]
[1759364779950,1.67306522,119030.0,119020.0,0.0271]
[1759364780455,0.88150522,119030.0,119020.0,0.0271]
[1759364780758,0.87649522,119030.0,119020.0,0.0271]
[1759364781058,0.9046899,119030.0,119020.0,0.03991]
[1759364781755,1.30717522,119030.0,119020.0,0.03991]
[1759364781962,1.31218522,119030.0,119020.0,0.0271]
[1759364782354,1.67298522,119030.0,119020.0,0.0271]
[1759364782949,1.67298522,119030.0,119020.0,0.0046]
[1759364783156,1.31218522,119030.0,119020.0,0.0046]
[1759364783863,1.67298522,119030.0,119020.0,0.0046]
[1759364784254,1.31218522,119030.0,119020.0,0.0046]
[1759364784460,1.31218522,119030.0,119020.0,0.02785]
[1759364785362,1.67298522,119030.0,119020.0,0.0046]
[1759364785759,1.67298522,119030.0,119020.0,0.02785]
[1759364785955,1.67290522,119030.0,119020.0,0.02785]
[1759364786159,1.67290522,119030.0,119020.0,0.0046]
[1759364787271,1.69322182,119030.0,119020.0,0.0046]
[1759364787862,2.07290522,119030.0,119020.0,0.0046]
[1759364788272,2.07290522,119030.0,119020.0,0.00317231]
[1759364788869,0.113954,119010.0,119000.0,0.08284552]
[1759364789169,1.65478545,119010.0,119000.0,0.08284552]
[1759364790065,1.65978545,119010.0,119000.0,0.08884552]
[1759364790271,1.66678545,119010.0,119000.0,0.09284552]
[1759364790663,2.15152954,119010.0,118980.0,0.41221161]
[1759364790862,2.15152954,119010.0,118980.0,0.38325651]
[1759364790863,0.52214332,118990.0,118980.0,0.38325651]
[1759364791072,0.910778,118990.0,118980.0,0.38325651]
[1759364792566,0.916778,118990.0,118980.0,0.38525651]
[1759364792771,0.916778,118990.0,118980.0,0.38325651]
[1759364792772,0.910778,118990.0,118980.0,0.38325651]
[1759364792965,0.917778,118990.0,118980.0,0.38725651]
[1759364793161,0.126658,118990.0,118980.0,0.40006651]
[1759364793471,0.903898,118990.0,118980.0,0.80255183]
[1759364793864,0.917658,118990.0,118980.0,0.32766099]
[1759364794563,0.92635173,118990.0,118980.0,0.32766099]
[1759364795980,0.92635173,118990.0,118980.0,0.02725]
[1759364796871,0.12159173,118990.0,118980.0,0.02725]
[1759364797069,0.91259173,118990.0,118980.0,0.04006]
[1759364797270,0.92635173,118990.0,118980.0,0.02725]
[1759364797864,1.32883705,118990.0,118980.0,0.004]
[1759364798372,1.68963705,118990.0,118980.0,0.004]
[1759364801575,2.08963705,118990.0,118980.0,0.004]
[1759364801776,1.66589655,118990.0,118980.0,0.06359552]
[1759364802277,0.87489655,118990.0,118980.0,0.06359552]
[1759364802469,1.66565655,118990.0,118980.0,0.06359552]
[1759364802669,2.08281392,118990.0,118980.0,0.05692965]
[1759364802865,0.1173421,118970.0,118960.0,0.41463453]
[1759364803181,1.31054742,118970.0,118960.0,0.41463453]
[1759364803476,1.31054742,118970.0,118960.0,0.09763413]
[1759364803676,1.377341,118970.0,118960.0,0.09763413]
[1759364804675,1.384341,118970.0,118960.0,0.09763413]
[1759364804879,1.384341,118970.0,118960.0,0.02325]
[1759364805074,1.384301,118970.0,118960.0,0.02325]
[1759364805470,0.1059191,118960.0,118950.0,0.39686]
[1759364806573,0.1119191,118960.0,118950.0,0.39686]
[1759364806973,0.8185,118960.0,118950.0,0.4808862]
[1759364807283,0.9025191,118960.0,118950.0,1.19934532]
[1759364807576,0.8965191,118960.0,118950.0,0.79686]
[1759364807781,0.9045191,118960.0,118950.0,0.79686]
[1759364808378,0.9045191,118960.0,118950.0,0.43606]